bitfinex-derivatives/quotes_BNBF0:USTF0_20251010
["timestamp","ask_amount","ask_price","bid_price","bid_amount"]
[1760097578361,1.91392774,1274.6,1271.1,0.58419256]
[1760097578362,1.91392774,1274.6,1271.5,0.53134996]
[1760097578560,1.91392774,1274.6,1271.6,0.53134996]
[1760097578764,1.91392774,1274.6,1271.1,0.58419256]
[1760097578964,1.91392774,1274.6,1271.2,0.53128974]
[1760097579164,1.91392774,1274.6,1271.3,0.53128974]
[1760097579362,1.91392774,1274.6,1271.4,0.53128974]
[1760097579659,1.91392774,1274.6,1271.5,0.53128974]
[1760097579864,1.91392774,1274.6,1271.6,0.53128974]
[1760097580162,1.91392774,1274.6,1271.1,0.58419256]
[1760097580360,1.91392774,1274.6,1271.2,0.53106706]
[1760097580660,1.91392774,1274.5,1271.3,0.53106706]
[1760097580859,1.91392774,1274.5,1271.4,0.53106706]
[1760097581060,1.91392774,1275.2,1271.5,0.53106706]
[1760097581263,1.91392774,1275.2,1271.6,0.53106706]
[1760097581461,1.91392774,1275.2,1271.0,0.58419256]
[1760097581762,1.91392774,1275.1,1271.1,0.53108143]
[1760097581961,1.91392774,1275.1,1271.2,0.53108143]
[1760097582164,1.91392774,1275.1,1271.3,0.53108143]
[1760097582361,1.91392774,1275.1,1271.4,0.53108143]
[1760097582560,0.13676853,1272.2,1271.5,0.53108143]
[1760097582764,0.13676853,1272.2,1271.6,0.53108143]
[1760097582965,1.91392774,1275.1,1271.0,0.58419256]
[1760097583163,1.91392774,1275.1,1271.1,0.53082767]
[1760097583465,0.13675778,1272.1,1271.2,0.53082767]
[1760097583665,1.91392774,1275.1,1271.3,0.53082767]
[1760097583864,0.13677122,1274.2,1271.4,0.53082767]
[1760097584062,0.13677122,1274.2,1271.5,0.53082767]
[1760097584266,0.13677122,1274.2,1271.6,0.53082767]
[1760097584464,0.13677122,1274.2,1271.0,0.58419256]
[1760097584661,0.13677122,1274.2,1271.1,0.5299935]
[1760097584862,0.13677122,1274.2,1271.0,0.58419256]
[1760097584863,0.13677122,1274.2,1271.2,0.5299935]
[1760097585166,0.13677122,1274.2,1271.3,0.5299935]
[1760097585368,0.13677122,1274.2,1271.4,0.5299935]
[1760097585568,0.13677122,1274.2,1271.5,0.5299935]
[1760097585769,0.13677122,1274.2,1271.6,0.5299935]
[1760097586070,0.13677122,1274.2,1271.1,0.58419256]
[1760097586270,0.13677122,1274.2,1271.2,0.53004337]
[1760097586467,0.13677122,1274.2,1271.3,0.53004337]
[1760097586670,0.13677122,1274.2,1271.4,0.53004337]
[1760097586866,0.13677122,1274.2,1271.5,0.53004337]
[1760097587069,0.13677122,1274.2,1271.6,0.53004337]
[1760097587364,0.13677122,1274.2,1271.1,0.58419256]
[1760097587565,0.13677122,1274.2,1271.2,0.53026786]
[1760097587765,0.13677122,1274.2,1271.3,0.53026786]
[1760097587967,0.13677122,1274.2,1271.4,0.53026786]
[1760097588265,0.13677122,1274.2,1271.5,0.53026786]
[1760097588469,0.13677122,1274.2,1271.6,0.53026786]
[1760097588672,0.13677122,1274.2,1271.0,0.58419256]
[1760097588867,0.13677122,1274.2,1271.1,0.53051524]
[1760097589071,0.13677122,1274.2,1271.2,0.53051524]
[1760097589371,0.13677122,1274.2,1271.3,0.53051524]
[1760097589572,0.13677122,1274.2,1271.4,0.53051524]
[1760097589772,0.13677122,1274.2,1271.5,0.53051524]
[1760097589970,0.13677122,1274.2,1271.6,0.53051524]
[1760097590174,0.13677122,1274.2,1271.0,0.58419256]
[1760097590370,0.13677122,1274.2,1271.1,0.53051687]
[1760097590669,0.13677122,1274.2,1271.0,0.58419256]
[1760097590670,0.13677122,1274.2,1271.2,0.53051687]
[1760097590968,0.13677122,1274.2,1271.3,0.53051687]
[1760097591274,0.13677122,1274.2,1271.4,0.53051687]
[1760097591473,0.13677122,1274.2,1271.5,0.53051687]
[1760097591674,0.13677122,1274.2,1271.6,0.53051687]
[1760097591876,0.13677122,1274.2,1271.0,0.58419256]
[1760097592170,0.13677122,1274.2,1271.1,0.53026521]
[1760097592370,0.13677122,1274.2,1271.2,0.53026521]
[1760097592671,0.13677122,1274.2,1271.3,0.53026521]
[1760097592877,0.13677122,1274.2,1271.4,0.53026521]
[1760097593175,0.13677122,1274.2,1271.5,0.53026521]
[1760097593374,0.13677122,1274.2,1271.6,0.53026521]
[1760097593572,0.13677122,1274.2,1271.0,0.58419256]
[1760097593777,0.13677122,1274.2,1271.1,0.5304332]
[1760097594072,0.13677122,1274.2,1271.2,0.5304332]
[1760097594277,0.13677122,1274.2,1271.3,0.5304332]
[1760097594574,0.13677122,1274.2,1271.4,0.5304332]
[1760097594778,0.13677122,1274.2,1271.5,0.5304332]
[1760097595077,0.13677122,1274.2,1271.6,0.5304332]
[1760097595275,0.13677122,1274.2,1271.1,0.58419256]
[1760097595478,0.13677122,1274.2,1271.2,0.53081765]
[1760097595774,0.13677122,1274.2,1271.3,0.53081765]
[1760097595974,0.13677122,1274.2,1271.4,0.53081765]
[1760097596277,0.13677122,1274.2,1271.5,0.53081765]
[1760097596477,0.13677122,1274.2,1270.8,0.58419256]
[1760097596676,0.13677122,1274.2,1270.9,0.53110508]
[1760097596873,0.13677122,1274.2,1271.0,0.53110508]
[1760097597076,0.13677122,1274.2,1271.1,0.53110508]
[1760097597273,0.13677122,1274.2,1271.2,0.53110508]
[1760097597478,0.13677122,1274.2,1271.3,0.53110508]
[1760097597678,0.13677122,1274.2,1271.4,0.53110508]
[1760097597875,0.13677122,1274.2,1270.7,0.58419256]
[1760097598078,0.13677122,1274.2,1270.8,0.53143493]
[1760097598275,0.13677122,1274.2,1270.9,0.53143493]
[1760097598576,0.13677122,1274.2,1271.0,0.53143493]
[1760097598876,0.13677122,1274.2,1271.1,0.53143493]
[1760097599080,0.13677122,1274.2,1271.2,0.53143493]
[1760097599279,0.13677122,1274.2,1271.3,0.53143493]
[1760097599475,0.13677122,1274.2,1271.4,0.53143493]
[1760097599680,0.13677122,1274.2,1271.5,0.53143493]
[1760097599877,0.13677122,1274.2,1271.0,0.58419256]
[1760097600077,0.13677122,1274.2,1271.1,0.5315339]
[1760097600277,0.13677122,1274.2,1271.2,0.5315339]
[1760097600575,0.13677122,1274.2,1271.0,0.58419256]
[1760097600576,0.13677122,1274.2,1271.3,0.5315339]
[1760097600779,0.13677122,1274.2,1271.4,0.5315339]
[1760097600980,0.13677122,1274.2,1271.5,0.5315339]
[1760097601180,0.13677122,1274.2,1271.0,0.58419256]
[1760097601380,0.13677122,1274.2,1271.1,0.53164325]
[1760097601579,0.13677122,1274.2,1271.2,0.53164325]
[1760097601780,0.13677122,1274.2,1271.3,0.53164325]
[1760097601978,0.13677122,1274.2,1271.4,0.53164325]
[1760097602176,0.13677122,1274.2,1271.5,0.53164325]
[1760097602375,2.05069896,1274.2,1271.1,0.58419256]
[1760097602578,2.05069896,1274.2,1271.2,0.53190573]
[1760097602778,2.05069896,1274.2,1271.1,0.58419256]
[1760097602779,2.05069896,1274.2,1271.3,0.53190573]
[1760097602979,1.91392774,1274.1,1271.4,0.53190573]
[1760097603181,1.91392774,1274.1,1271.5,0.53190573]
[1760097603380,1.91392774,1274.1,1271.0,0.58419256]
[1760097603579,1.91392774,1273.7,1271.1,0.53218593]
[1760097603884,1.91392774,1273.7,1271.2,0.53218593]
[1760097604083,1.91392774,1273.6,1270.9,0.58419256]
[1760097604381,0.78685499,1273.5,1271.0,0.53245525]
[1760097604582,0.78314146,1272.2,1270.5,0.58419256]
[1760097604782,0.19578773,1270.6,1270.5,0.58419256]
[1760097604981,0.19578773,1270.6,1270.3,0.96734383]
[1760097605783,0.19578773,1270.6,1270.5,0.58356049]
[1760097606181,0.78685499,1272.1,1270.5,0.58356049]
[1760097606384,1.56999645,1272.1,1270.5,0.58356049]
[1760097606584,0.78685499,1272.0,1270.5,0.58356049]
[1760097607085,0.78685499,1271.9,1270.5,0.58356049]
[1760097607283,0.1958075,1270.6,1270.5,0.58356049]
[1760097608387,0.1958075,1270.7,1270.4,0.19360151]
[1760097608588,0.1958075,1270.7,1270.6,0.58319702]
[1760097609689,0.1958075,1270.7,1270.5,0.19360151]
[1760097609889,0.1958075,1270.7,1270.6,0.58334725]
[1760097610085,0.1958075,1270.8,1270.5,0.96734383]
[1760097610285,0.1958075,1270.8,1270.7,0.58321329]
[1760097610488,0.1958075,1270.9,1270.6,0.19360151]
[1760097610685,0.1958075,1270.9,1270.8,0.58318827]
[1760097610889,0.1958075,1270.9,1270.6,0.77678978]
[1760097611184,0.1958075,1270.9,1270.6,0.58318827]
[1760097611486,0.78314146,1272.1,1270.6,0.58318827]
[1760097611687,0.78668793,1272.0,1270.6,0.58318827]
[1760097612286,0.78668793,1271.9,1270.4,0.58318827]
[1760097612489,0.78668793,1271.8,1270.4,0.58318827]
[1760097612785,0.78668793,1271.7,1270.3,0.58318827]
[1760097613086,0.19594008,1270.4,1270.2,0.58318827]
[1760097613490,0.19594008,1270.3,1270.1,0.58318827]
[1760097615190,0.19594008,1270.3,1270.1,0.77678978]
[1760097619189,0.19594008,1270.3,1270.1,0.58318827]
[1760097623297,0.19594008,1270.3,1270.0,0.77678978]
[1760097624194,0.19594008,1270.3,1269.9,0.19360151]
[1760097624394,0.19594008,1270.1,1269.8,0.77678978]
[1760097624998,0.19594008,1270.0,1269.8,0.77678978]
[1760097625696,0.19594008,1270.0,1269.8,0.19360151]
[1760097625893,0.19594008,1270.1,1269.8,0.77678978]
[1760097627594,0.19594008,1270.4,1270.0,0.58318827]
[1760097627798,0.19594008,1270.4,1270.1,0.19360151]
[1760097629800,0.19594008,1270.4,1270.2,0.58318827]
[1760097630099,0.19594008,1270.4,1270.2,0.77678978]
[1760097630900,0.19594008,1270.4,1270.1,0.77678978]
[1760097631397,0.19594008,1270.3,1270.1,0.77678978]
[1760097631902,0.19594008,1270.3,1270.1,0.19360151]
[1760097633103,0.19594008,1270.3,1270.1,0.77678978]
[1760097636205,0.19594008,1270.3,1269.9,0.19360151]
[1760097636706,0.19594008,1270.1,1269.9,0.19360151]
[1760097637601,0.19594008,1270.1,1268.8,1.160795]
[1760097637602,0.19594008,1270.1,1269.8,0.19360151]
[1760097637804,0.19594008,1269.9,1269.7,0.19360151]
[1760097638002,0.19594008,1269.9,1269.6,0.77678978]
[1760097638305,0.19594008,1269.7,1269.5,0.77678978]
[1760097639404,0.19594008,1269.7,1269.5,0.19360151]
[1760097640303,0.19594008,1269.7,1269.2,0.19360151]
[1760097640503,0.19594008,1269.5,1269.2,0.19360151]
[1760097640702,0.19594008,1269.5,1268.4,0.77374232]
[1760097640703,0.19594008,1269.5,1269.3,0.19360151]
[1760097642608,0.78756203,1271.4,1269.3,0.19360151]
[1760097642609,0.19594008,1269.6,1269.3,0.19360151]
[1760097643709,0.19594008,1269.5,1269.3,0.19360151]
[1760097644409,0.19594008,1269.5,1269.2,0.19360151]
[1760097644809,0.19594008,1269.4,1269.2,0.19360151]
[1760097646109,0.19594008,1269.4,1269.1,0.19360151]
[1760097646310,2.7886686,1272.9,1269.2,0.19360151]
[1760097646311,0.19594008,1269.5,1269.2,0.19360151]
[1760097646709,0.19594008,1269.5,1268.9,0.19360151]
[1760097647204,0.19594008,1269.1,1268.9,0.19360151]
[1760097648910,0.19594008,1269.2,1268.9,0.19360151]
[1760097650406,0.19594008,1269.4,1269.1,0.19360151]
[1760097652610,0.19594008,1269.4,1269.2,0.19360151]
[1760097653810,0.19594008,1269.4,1269.1,0.19360151]
[1760097655708,0.19594008,1269.3,1269.1,0.19360151]
[1760097655914,0.19594008,1269.3,1269.0,0.19360151]
[1760097656109,0.19594008,1269.2,1269.0,0.19360151]
[1760097656308,0.19594008,1269.3,1269.0,0.19360151]
[1760097656811,0.19594008,1269.2,1269.0,0.19360151]
[1760097657514,0.19594008,1269.2,1268.9,0.19360151]
[1760097658013,0.19594008,1269.1,1268.9,0.19360151]
[1760097658913,0.19594008,1269.1,1268.8,0.19360151]
[1760097659314,0.19594008,1268.9,1268.7,0.19360151]
[1760097659710,0.19594008,1268.9,1268.5,0.19360151]
[1760097659913,0.19594008,1268.7,1268.5,0.19360151]
[1760097660310,0.19594008,1268.8,1268.5,0.19360151]
[1760097660614,0.19594008,1269.0,1268.5,0.19360151]
[1760097660815,0.19594008,1269.1,1268.8,0.19360151]
[1760097663315,0.19594008,1269.0,1268.8,0.19360151]
[1760097666414,0.19594008,1269.1,1268.8,0.19360151]
[1760097667518,0.19594008,1269.0,1268.8,0.19360151]
[1760097669714,0.78785798,1271.0,1268.8,0.19360151]
[1760097669715,0.19594008,1269.1,1268.8,0.19360151]
[1760097670320,0.19594008,1269.0,1268.8,0.19360151]
[1760097677122,0.19594008,1269.0,1268.7,0.19360151]
[1760097680921,0.19594008,1269.0,1268.8,0.19360151]
[1760097681125,0.19594008,1269.0,1268.7,0.19360151]
[1760097685630,0.19594008,1268.9,1268.7,0.19360151]
[1760097685830,0.19594008,1269.0,1268.7,0.19360151]
[1760097686129,0.19594008,1269.0,1268.4,0.19360151]
[1760097686326,0.19594008,1268.7,1268.4,0.19360151]
[1760097686729,0.19594008,1268.7,1268.5,0.19360151]
[1760097687539,0.19594008,1268.9,1268.5,0.19360151]
[1760097687734,0.19594008,1268.9,1268.7,0.19360151]
[1760097688135,0.19594008,1269.0,1268.7,0.19360151]
[1760097688335,0.19594008,1269.0,1268.8,0.19360151]
[1760097689733,0.19594008,1269.1,1268.9,0.19360151]
[1760097690429,0.19594008,1269.2,1268.9,0.19360151]
[1760097690834,0.19594008,1269.2,1269.0,0.19360151]
[1760097691131,0.19594008,1269.3,1269.0,0.19360151]
[1760097691429,0.19594008,1269.4,1269.1,0.19360151]
[1760097695438,0.19594008,1269.3,1269.1,0.19360151]
[1760097696039,0.19594008,1269.4,1269.1,0.19360151]
[1760097700547,0.19594008,1269.4,1269.1,0.77678978]
[1760097700947,0.19594008,1269.4,1269.2,0.19360151]
[1760097701645,0.19594008,1269.5,1269.2,0.19360151]
[1760097701948,0.19594008,1269.7,1269.4,0.58318827]
[1760097702149,0.19594008,1269.7,1269.5,0.19519475]
[1760097702850,0.19594008,1269.9,1269.6,0.77838302]
[1760097703148,0.19594008,1269.9,1269.7,0.19519475]
[1760097704150,0.19594008,1270.1,1269.8,0.19519475]
[1760097704550,0.19594008,1270.1,1269.6,0.19519475]
[1760097704747,0.19594008,1269.9,1269.6,0.19519475]
[1760097705652,0.19594008,1269.9,1269.5,0.19519475]
[1760097705947,0.19594008,1269.9,1268.9,1.160795]
[1760097705948,0.19594008,1269.9,1269.7,0.19519475]
[1760097707646,0.19594008,1269.9,1269.6,0.19519475]
[1760097709049,0.19594008,1269.8,1269.6,0.19519475]
[1760097709948,0.78314146,1271.7,1269.4,0.19519475]
[1760097709949,0.19594008,1269.7,1269.4,0.19519475]
[1760097710653,0.19594008,1269.7,1269.5,0.19519475]
[1760097719960,0.19594008,1269.7,1269.4,0.19519475]
[1760097720462,0.19594008,1269.6,1269.4,0.19519475]
[1760097721764,0.19594008,1269.5,1269.3,0.19519475]
[1760097721962,0.19594008,1269.5,1269.2,0.19519475]
[1760097728170,0.19594008,1269.5,1269.3,0.19519475]
[1760097728765,0.19594008,1269.5,1269.1,0.19519475]
[1760097728970,0.19594008,1269.3,1269.1,0.19519475]
[1760097729372,0.19594008,1269.3,1268.9,0.19519475]
[1760097729571,0.19594008,1269.2,1268.9,0.19519475]
[1760097729869,0.19594008,1269.2,1268.8,0.19519475]
[1760097730071,0.19594008,1269.0,1268.8,0.19519475]
[1760097730767,0.19594008,1269.0,1268.3,0.77374232]
[1760097730768,0.19594008,1269.0,1268.7,0.19519475]
[1760097731471,0.19594008,1269.0,1268.5,0.58318827]
[1760097731472,0.19594008,1269.0,1268.6,0.19519475]
[1760097731667,0.19594008,1268.8,1268.6,0.19519475]
[1760097732372,0.19594008,1268.8,1268.5,0.19519475]
[1760097732668,0.19594008,1268.7,1268.5,0.19519475]
[1760097733373,0.19594008,1268.7,1268.4,0.19519475]
[1760097733569,0.19594008,1268.7,1268.3,0.19519475]
[1760097733872,0.19594008,1268.5,1268.3,0.19519475]
[1760097734572,0.19594008,1268.5,1268.0,0.58318827]
[1760097734573,0.19594008,1268.5,1268.2,0.19519475]
[1760097734971,0.19594008,1268.5,1268.0,0.19519475]
[1760097735168,0.19594008,1268.2,1268.0,0.19519475]
[1760097735776,0.19594008,1269.0,1268.0,0.96893707]
[1760097735972,0.19594008,1269.0,1268.3,0.58550797]
[1760097736177,0.19594008,1269.0,1268.6,0.19519475]
[1760097736375,0.19594008,1268.9,1268.6,0.19519475]
[1760097736975,0.19594008,1268.8,1268.6,0.19519475]
[1760097737276,0.19594008,1268.8,1268.5,0.19519475]
[1760097737476,0.19594008,1268.7,1268.5,0.19519475]
[1760097738678,0.19594008,1268.7,1268.4,0.19519475]
[1760097739082,0.19594008,1268.6,1268.3,0.19519475]
[1760097740677,0.19594008,1268.5,1268.3,0.19519475]
[1760097740889,0.19594008,1268.7,1268.3,0.19519475]
[1760097741189,0.19594008,1268.7,1268.5,0.19519475]
[1760097741487,0.19594008,1268.7,1268.4,0.19519475]
[1760097741885,0.19594008,1268.6,1268.4,0.19519475]
[1760097744687,0.19594008,1268.7,1268.4,0.19519475]
[1760097746388,0.19594008,1268.6,1268.4,0.19519475]
[1760097747491,0.19594008,1268.8,1268.4,0.19519475]
[1760097747892,0.19594008,1268.8,1268.5,0.19519475]
[1760097749592,0.19594008,1268.8,1268.6,0.19519475]
[1760097756092,0.19594008,1268.9,1268.6,0.19519475]
[1760097756592,0.19594008,1269.0,1268.6,0.19519475]
[1760097757091,0.19594008,1269.0,1268.8,0.19519475]
[1760097757292,0.19594008,1269.1,1268.8,0.19519475]
[1760097757492,0.19594008,1269.2,1268.8,0.19519475]
[1760097757689,0.19594008,1269.2,1269.0,0.19519475]
[1760097758998,0.19594008,1269.2,1268.9,0.19519475]
[1760097759794,0.19594008,1269.1,1268.9,0.19519475]
[1760097761398,0.19594008,1269.0,1268.7,0.19519475]
[1760097762395,0.19594008,1268.8,1268.6,0.19519475]
[1760097765295,0.19594008,1268.8,1268.4,0.19519475]
[1760097765494,0.19594008,1268.6,1268.4,0.19519475]
[1760097765895,1.1747122,1270.6,1268.4,0.19519475]
[1760097765896,0.19594008,1268.8,1268.4,0.19519475]
[1760097766395,0.19594008,1268.8,1268.6,0.19519475]
[1760097766798,0.19594008,1268.9,1268.7,0.19519475]
[1760097766997,0.19594008,1269.0,1268.7,0.19519475]
[1760097770700,0.19594008,1268.9,1268.6,0.19519475]
[1760097771601,0.19594008,1269.0,1268.8,0.19519475]
[1760097774405,0.19594008,1269.1,1268.8,0.19519475]
[1760097774606,0.19594008,1269.2,1268.8,0.19519475]
[1760097775105,0.19594008,1269.2,1268.7,0.58550797]
[1760097775106,0.19594008,1269.3,1268.9,0.19519475]
[1760097775602,0.19594008,1269.3,1269.0,0.19519475]
[1760097776606,0.19594008,1269.4,1269.2,0.19519475]
[1760097786513,0.19594008,1269.4,1269.0,0.19519475]
[1760097786709,0.19594008,1269.2,1269.0,0.19519475]
[1760097791116,0.19594008,1269.3,1269.0,0.19519475]
[1760097791313,0.19594008,1269.3,1269.1,0.19519475]
[1760097792613,0.13702163,1269.5,1269.1,0.19519475]
[1760097792614,0.19594008,1269.4,1269.1,0.19519475]
[1760097792817,0.19594008,1269.5,1269.2,0.19519475]
[1760097795515,0.19594008,1269.6,1269.4,0.19519475]
[1760097796714,0.33299733,1269.7,1269.4,0.19519475]
[1760097796919,0.33299733,1269.7,1269.5,0.19519475]
[1760097797418,0.19594008,1269.9,1269.4,0.58550797]
[1760097797714,0.19594008,1269.9,1269.7,0.19475915]
[1760097800516,0.19594008,1270.0,1269.7,0.19475915]
[1760097801216,0.19594008,1270.1,1269.8,0.19475915]
[1760097802115,0.19594008,1270.1,1269.9,0.19475915]
[1760097804720,0.19594008,1270.2,1270.0,0.19475915]
[1760097804923,0.19594008,1270.7,1270.0,0.78026712]
[1760097805217,0.19594008,1270.7,1269.7,0.77374232]
[1760097805218,0.19594008,1270.7,1270.4,0.19475915]
[1760097806521,0.19594008,1270.6,1270.4,0.19475915]
[1760097807223,0.19594008,1270.9,1270.4,0.19475915]
[1760097807726,0.19594008,1270.9,1270.6,0.19475915]
[1760097813333,0.19594008,1270.9,1269.7,0.58550797]
[1760097813334,0.19594008,1270.9,1270.7,0.19475915]
[1760097814633,0.19594008,1270.9,1269.3,0.77374232]
[1760097814634,0.19594008,1270.9,1270.6,0.19475915]
[1760097815230,0.19594008,1270.9,1270.7,0.19475915]
[1760097815734,0.19594008,1270.9,1270.6,0.19475915]
[1760097816231,0.19594008,1270.8,1270.6,0.19475915]
[1760097817739,0.13692189,1271.1,1270.6,0.19475915]
[1760097817740,0.19594008,1270.9,1270.6,0.19475915]
[1760097819841,0.19594008,1270.7,1270.5,0.19475915]
[1760097822341,0.19594008,1270.8,1270.5,0.19475915]
[1760097823044,0.19594008,1270.8,1270.6,0.19475915]
[1760097823246,0.13692189,1271.1,1270.6,0.19475915]
[1760097823247,0.19594008,1270.9,1270.6,0.19475915]
[1760097823948,0.19594008,1270.9,1270.7,0.19475915]
[1760097827545,0.13692189,1271.1,1270.7,0.19475915]
[1760097827546,0.19594008,1271.1,1270.7,0.19475915]
[1760097827750,0.19594008,1271.1,1270.8,0.19475915]
[1760097828949,0.19594008,1271.2,1270.8,0.19475915]
[1760097829249,0.19594008,1271.2,1270.9,0.19475915]
[1760097830246,0.19594008,1271.2,1271.0,0.19475915]
[1760097830550,0.19594008,1271.3,1271.0,0.19475915]
[1760097830750,0.19594008,1271.3,1271.1,0.19475915]
[1760097833552,0.19594008,1271.3,1268.4,1.94382068]
[1760097833553,0.19594008,1271.3,1271.0,0.19475915]
[1760097833756,0.19594008,1271.2,1271.0,0.19475915]
[1760097838252,0.19594008,1271.2,1270.9,0.19475915]
[1760097838857,0.19594008,1271.2,1271.0,0.19475915]
[1760097839553,0.19594008,1271.3,1271.0,0.19475915]
[1760097839858,0.19594008,1271.3,1271.1,0.19475915]
[1760097840158,0.19594008,1271.3,1271.0,0.19475915]
[1760097841561,0.19594008,1271.2,1271.0,0.19475915]
[1760097843758,0.19594008,1271.2,1270.9,0.19475915]
[1760097844263,0.19594008,1271.1,1270.8,0.19475915]
[1760097844664,0.19594008,1271.0,1270.7,0.19475915]
[1760097845563,0.19594008,1270.9,1270.7,0.19475915]
[1760097846761,0.19594008,1271.0,1270.7,0.19475915]
[1760097846959,0.19594008,1271.0,1270.8,0.19475915]
[1760097847161,0.19594008,1271.2,1270.8,0.19475915]
[1760097847665,0.19594008,1271.2,1271.0,0.19475915]
[1760097848661,0.19594008,1271.3,1271.1,0.19475915]
[1760097849465,0.33284554,1271.4,1271.1,0.19475915]
[1760097851668,0.19594008,1271.3,1271.1,0.19475915]
[1760097856071,0.19594008,1271.3,1271.0,0.19475915]
[1760097856472,0.19594008,1271.2,1271.0,0.19475915]
[1760097857173,0.19594008,1271.3,1271.0,0.19475915]
[1760097858676,0.19594008,1271.3,1271.1,0.19475915]
[1760097859674,0.33284554,1271.4,1271.1,0.19475915]
[1760097861178,0.19594008,1271.3,1271.1,0.19475915]
[1760097862279,0.19594008,1271.4,1271.1,0.19475915]
[1760097862478,0.19594008,1271.5,1271.1,0.19475915]
[1760097862777,0.19594008,1271.5,1271.3,0.19475915]
[1760097863479,0.19594008,1271.6,1271.3,0.19475915]
[1760097863874,0.19594008,1271.6,1271.4,0.19475915]
[1760097864978,0.33278659,1271.7,1271.4,0.19475915]
[1760097865276,0.13684651,1271.7,1271.6,0.19475915]
[1760097865874,0.19594008,1271.8,1271.6,0.19475915]
[1760097866078,0.19594008,1272.0,1271.6,0.19475915]
[1760097866275,0.19594008,1272.0,1271.7,0.19475915]
[1760097866779,0.19594008,1272.0,1271.4,0.57882576]
[1760097866780,0.19594008,1272.0,1271.8,0.19475915]
[1760097867076,0.19594008,1272.0,1271.7,0.19475915]
[1760097867480,0.19594008,1272.2,1271.7,0.57882576]
[1760097867776,0.19594008,1272.2,1272.0,0.19328731]
[1760097869377,0.19594008,1272.2,1271.9,0.19328731]
[1760097870382,0.19594008,1272.2,1272.0,0.19328731]
[1760097871882,0.19594008,1272.2,1271.2,0.77374232]
[1760097871883,0.19594008,1272.2,1271.9,0.19328731]
[1760097873983,0.13677928,1272.3,1271.7,0.19328731]
[1760097874186,0.19463356,1271.9,1271.7,0.19328731]
[1760097878989,0.19463356,1272.0,1271.7,0.19328731]
[1760097879590,0.19463356,1272.0,1271.8,0.19328731]
[1760097880192,0.19463356,1272.1,1271.8,0.19328731]
[1760097880690,0.19463356,1272.2,1271.8,0.19328731]
[1760097882990,0.19463356,1272.2,1271.9,0.19328731]
[1760097884491,0.19463356,1272.1,1271.9,0.19328731]
[1760097886698,0.19463356,1272.2,1271.9,0.19328731]
[1760097886903,0.19463356,1272.2,1272.0,0.19328731]
[1760097888706,0.19463356,1272.2,1271.9,0.19328731]
[1760097890006,0.19463356,1272.2,1272.0,0.19328731]
[1760097890601,0.19463356,1272.2,1270.3,1.160795]
[1760097890602,0.19463356,1272.2,1271.9,0.19328731]
[1760097892104,0.19463356,1272.2,1272.0,0.19328731]
[1760097892402,0.19463356,1272.2,1271.9,0.19328731]
[1760097893004,0.19463356,1272.2,1271.8,0.19328731]
[1760097893403,0.19463356,1272.0,1271.8,0.19328731]
[1760097894504,0.13677928,1272.3,1271.7,0.19328731]
[1760097894505,0.19463356,1271.9,1271.7,0.19328731]
[1760097902714,0.19463356,1272.0,1271.7,0.19328731]
[1760097902915,0.19463356,1272.1,1271.7,0.19328731]
[1760097903211,0.19463356,1272.1,1271.8,0.19328731]
[1760097903411,0.19463356,1272.0,1271.8,0.19328731]
[1760097903610,0.19463356,1272.1,1271.8,0.19328731]
[1760097904814,0.19463356,1272.0,1271.8,0.19328731]
[1760097905311,0.19463356,1272.1,1271.8,0.19328731]
[1760097905814,0.19463356,1272.1,1270.6,1.160795]
[1760097905815,0.19463356,1272.1,1271.9,0.19328731]
[1760097906015,0.19463356,1272.1,1271.7,0.19328731]
[1760097906312,0.19463356,1272.1,1271.5,0.19328731]
[1760097906514,0.19463356,1271.7,1271.5,0.19328731]
[1760097909016,0.19463356,1271.8,1271.5,0.19328731]
[1760097912115,0.19463356,1271.8,1271.6,0.19328731]
[1760097915822,0.19463356,1271.9,1271.6,0.19328731]
[1760097917422,0.19463356,1272.0,1271.8,0.19328731]
[1760097918018,0.19463356,1272.0,1271.7,0.19328731]
[1760097919220,0.19463356,1272.0,1271.8,0.19328731]
[1760097919424,0.19463356,1272.1,1271.8,0.19328731]
[1760097920226,0.19463356,1272.2,1272.0,0.19328731]
[1760097920721,0.33141284,1272.3,1272.1,0.19328731]
[1760097921021,0.19463356,1272.3,1272.1,0.19328731]
[1760097921221,0.19463356,1272.5,1270.5,1.94382068]
[1760097921422,0.19463356,1272.5,1272.3,0.1927489]
[1760097922525,0.33145048,1272.6,1272.3,0.1927489]
[1760097923124,0.19463356,1272.5,1272.3,0.1927489]
[1760097923721,0.19463356,1272.5,1272.0,0.1927489]
[1760097923926,0.19463356,1272.3,1272.0,0.1927489]
[1760097926730,0.19463356,1272.2,1272.0,0.1927489]
[1760097927226,0.19463356,1272.2,1271.9,0.1927489]
[1760097928627,0.46825838,1272.5,1271.6,0.1927489]
[1760097928930,0.19561551,1271.9,1271.6,0.1927489]
[1760097929327,0.66412818,1271.8,1271.2,0.1927489]
[1760097929530,0.19561551,1271.8,1271.2,0.1927489]
[1760097929727,0.19561551,1271.5,1271.2,0.1927489]
[1760097930327,0.19561551,1271.4,1271.2,0.1927489]
[1760097934931,0.19561551,1271.5,1271.2,0.1927489]
[1760097936434,0.19561551,1271.6,1271.3,0.1927489]
[1760097938136,0.19561551,1271.6,1271.4,0.1927489]
[1760097938839,0.19561551,1271.7,1271.4,0.1927489]
[1760097939039,0.19561551,1271.7,1271.5,0.1927489]
[1760097940143,0.19561551,1271.8,1271.5,0.1927489]
[1760097940441,0.19561551,1271.8,1271.6,0.1927489]
[1760097943440,0.19561551,1271.9,1271.6,0.1927489]
[1760097943941,0.19561551,1271.9,1271.7,0.1927489]
[1760097945945,0.19561551,1271.9,1271.5,0.1927489]
[1760097946440,0.19561551,1271.7,1271.5,0.1927489]
[1760097946842,0.19561551,1271.7,1271.4,0.1927489]
[1760097947448,0.19561551,1271.5,1271.3,0.1927489]
[1760097948349,0.19561551,1271.6,1271.3,0.1927489]
[1760097949549,0.19561551,1271.6,1271.4,0.1927489]
[1760097949950,0.19561551,1271.7,1271.4,0.1927489]
[1760097952246,0.19561551,1271.8,1271.4,0.1927489]
[1760097952748,0.19561551,1271.8,1271.6,0.1927489]
[1760097955752,0.19561551,1271.8,1271.5,0.1927489]
[1760097956951,0.19561551,1271.8,1271.6,0.1927489]
[1760097957254,0.19561551,1271.8,1271.5,0.1927489]
[1760097957755,0.19561551,1271.8,1271.6,0.1927489]
[1760097959759,0.19561551,1271.8,1271.5,0.1927489]
[1760097959957,0.19561551,1271.7,1271.4,0.1927489]
[1760097960256,0.19561551,1271.7,1271.3,0.1927489]
[1760097960455,0.19561551,1271.5,1271.3,0.1927489]
[1760097961156,0.19561551,1271.5,1271.2,0.1927489]
[1760097962259,0.19561551,1271.4,1271.0,0.1927489]
[1760097962659,0.19561551,1271.2,1270.9,0.1927489]
[1760097963653,0.19561551,1271.2,1271.0,0.1927489]
[1760097964859,0.19561551,1271.2,1270.9,0.1927489]
[1760097965256,0.19561551,1271.2,1271.0,0.1927489]
[1760097967362,0.19561551,1271.2,1270.9,0.1927489]
[1760097970462,0.19561551,1271.2,1271.0,0.1927489]
[1760097977866,0.19561551,1271.3,1271.1,0.1927489]
[1760097981069,0.19561551,1271.4,1271.1,0.1927489]
[1760097983570,0.19561551,1271.5,1271.2,0.1927489]